[Event "Titled Tuesday Blitz April 11 Early 2023"]
[White "MunichMouse"]
[Black "mohsengabr2002"]
[WhiteElo "2305"]
[BlackElo "2431"]
[Result "1-0"]
[Round "07"]
[TimeControl "180+2"]
[Date "2023.04.11"]
[WhiteClock "0:01:19"]
[BlackClock "0:01:04"]

1. d4 {[%clk 0:02:50]}  d5 {[%clk 0:02:57]} 2. c4 {[%clk 0:02:50]}  e6 {[%clk 0:02:57]} 3. Nf3 {[%clk 0:02:50]}  c6 {[%clk 0:02:57]} 4. g3 {[%clk 0:02:51]}  f5 {[%clk 0:02:57]} 5. Ne5 {[%clk 0:02:49]}  Nf6 {[%clk 0:02:58]} 6. Bg2 {[%clk 0:02:47]}  Bd6 {[%clk 0:02:57]} 7. f4 {[%clk 0:02:47]}  O-O {[%clk 0:02:57]} 8. O-O {[%clk 0:02:46]}  Nbd7 {[%clk 0:02:56]} 9. b3 {[%clk 0:02:46]}  Ne4 {[%clk 0:02:56]} 10. e3 {[%clk 0:02:39]}  Qf6 {[%clk 0:02:56]} 11. Nd2 {[%clk 0:02:38]}  Qh6 {[%clk 0:02:55]} 12. Nxe4 {[%clk 0:02:38]}  fxe4 {[%clk 0:02:55]} 13. Nxd7 {[%clk 0:02:34]}  Bxd7 {[%clk 0:02:55]} 14. c5 {[%clk 0:02:35]}  Bc7 {[%clk 0:02:54]} 15. Qe2 {[%clk 0:02:30]}  Be8 {[%clk 0:02:50]} 16. b4 {[%clk 0:02:28]}  a6 {[%clk 0:02:49]} 17. a4 {[%clk 0:02:27]}  Bh5 {[%clk 0:02:49]} 18. Qb2 {[%clk 0:02:27]}  g5 {[%clk 0:02:42]} 19. Bd2 {[%clk 0:02:20]}  gxf4 {[%clk 0:02:40]} 20. exf4 {[%clk 0:02:20]}  Be2 {[%clk 0:02:37]} 21. Rfe1 {[%clk 0:02:17]}  Bc4 {[%clk 0:02:33]} 22. Bf1 {[%clk 0:02:13]}  Bxf1 {[%clk 0:02:23]} 23. Rxf1 {[%clk 0:02:14]}  Qg7 {[%clk 0:02:17]} 24. Be3 {[%clk 0:02:07]}  b6 {[%clk 0:02:05]} 25. Kh1 {[%clk 0:01:58]}  bxc5 {[%clk 0:02:02]} 26. bxc5 {[%clk 0:01:59]}  Rab8 {[%clk 0:02:02]} 27. Qc2 {[%clk 0:01:49]}  Rb4 {[%clk 0:02:01]} 28. Rab1 {[%clk 0:01:48]}  a5 {[%clk 0:01:53]} 29. Rxb4 {[%clk 0:01:45]}  axb4 {[%clk 0:01:54]} 30. Rb1 {[%clk 0:01:46]}  Rb8 {[%clk 0:01:54]} 31. a5 {[%clk 0:01:44]}  Bxa5 {[%clk 0:01:44]} 32. Qa4 {[%clk 0:01:43]}  Rb5 {[%clk 0:01:41]} 33. Ra1 {[%clk 0:01:31]}  Qb7 {[%clk 0:01:32]} 34. Qb3 {[%clk 0:01:31]}  Kf7 {[%clk 0:01:30]} 35. g4 {[%clk 0:01:25]}  Bc7 {[%clk 0:01:26]} 36. f5 {[%clk 0:01:24]}  exf5 {[%clk 0:01:24]} 37. Rf1 {[%clk 0:01:24]}  Ra5 {[%clk 0:01:15]} 38. Rxf5+ {[%clk 0:01:23]}  Kg8 {[%clk 0:01:14]} 39. Bh6 {[%clk 0:01:20]}  Qa6 {[%clk 0:01:04]} 40. Rf8# {[%clk 0:01:19]} 1-0


[Site "https://www.chess.com"]

[Event "Titled Tuesday Blitz April 11 Early 2023"]
[White "Liu, Casper"]
[Black "Orujov2008"]
[WhiteFideId "1454153"]
[WhiteElo "2221"]
[BlackElo "2303"]
[Result "0-1"]
[Round "07"]
[TimeControl "180+2"]
[Date "2023.04.11"]
[WhiteClock "0:00:01"]
[BlackClock "0:00:03"]

1. e4 {[%clk 0:03:00]}  e5 {[%clk 0:02:58]} 2. Nf3 {[%clk 0:03:00]}  Nf6 {[%clk 0:02:58]} 3. Nxe5 {[%clk 0:02:56]}  Nxe4 {[%clk 0:02:58]} 4. Qe2 {[%clk 0:02:56]}  Qe7 {[%clk 0:02:58]} 5. Qxe4 {[%clk 0:02:49]}  d6 {[%clk 0:02:58]} 6. d4 {[%clk 0:02:49]}  dxe5 {[%clk 0:02:58]} 7. dxe5 {[%clk 0:02:49]}  Nc6 {[%clk 0:02:58]} 8. Bf4 {[%clk 0:02:46]}  f5 {[%clk 0:02:50]} 9. Qe3 {[%clk 0:02:43]}  Qb4+ {[%clk 0:02:11]} 10. Nc3 {[%clk 0:02:38]}  Bc5 {[%clk 0:02:00]} 11. Qg3 {[%clk 0:02:23]}  Be6 {[%clk 0:01:50]} 12. O-O-O {[%clk 0:02:18]}  O-O {[%clk 0:01:48]} 13. a3 {[%clk 0:02:13]}  Qa5 {[%clk 0:01:44]} 14. Bh6 {[%clk 0:01:47]}  Rf7 {[%clk 0:01:37]} 15. Be2 {[%clk 0:01:20]}  Bxa3 {[%clk 0:01:30]} 16. Bh5 {[%clk 0:00:45]}  Re7 {[%clk 0:01:30]} 17. Bg5 {[%clk 0:00:45]}  Bb4 {[%clk 0:01:22]} 18. Bxe7 {[%clk 0:00:40]}  Bxe7 {[%clk 0:01:22]} 19. Kb1 {[%clk 0:00:34]}  Rb8 {[%clk 0:01:09]} 20. Bf3 {[%clk 0:00:29]}  Nb4 {[%clk 0:01:05]} 21. Rd4 {[%clk 0:00:19]}  c5 {[%clk 0:00:57]} 22. Rd2 {[%clk 0:00:16]}  b5 {[%clk 0:00:52]} 23. Rhd1 {[%clk 0:00:15]}  Ba2+ {[%clk 0:00:40]} 24. Kc1 {[%clk 0:00:14]}  Bc4 {[%clk 0:00:34]} 25. Rd7 {[%clk 0:00:09]}  Qa1+ {[%clk 0:00:28]} 26. Kd2 {[%clk 0:00:07]}  Qxb2 {[%clk 0:00:27]} 27. Rxe7 {[%clk 0:00:07]}  Qxc2+ {[%clk 0:00:22]} 28. Ke1 {[%clk 0:00:07]}  Qxc3+ {[%clk 0:00:17]} 29. Rd2 {[%clk 0:00:07]}  Nd3+ {[%clk 0:00:15]} 30. Kd1 {[%clk 0:00:05]}  Qa1+ {[%clk 0:00:10]} 31. Ke2 {[%clk 0:00:05]}  Nxe5+ {[%clk 0:00:08]} 32. Ke3 {[%clk 0:00:05]}  Nc6 {[%clk 0:00:04]} 33. Bxc6 {[%clk 0:00:02]}  Qc3+ {[%clk 0:00:03]} 34. Kf4 {[%clk 0:00:01]}  Qxd2+ {[%clk 0:00:01]} 35. Qe3 {[%clk 0:00:02]}  Qxe3+ {[%clk 0:00:01]} 36. fxe3 {[%clk 0:00:02]}  Rf8 {[%clk 0:00:02]} 37. Ke5 {[%clk 0:00:02]}  Rf7 {[%clk 0:00:03]} 38. Re8+ {[%clk 0:00:02]}  Rf8 {[%clk 0:00:03]} 39. Re7 {[%clk 0:00:03]}  b4 {[%clk 0:00:03]} 40. Kd6 {[%clk 0:00:02]}  b3 {[%clk 0:00:03]} 41. Kxc5 {[%clk 0:00:02]}  Rb8 {[%clk 0:00:02]} 42. Kxc4 {[%clk 0:00:02]}  b2 {[%clk 0:00:03]} 43. Bd5+ {[%clk 0:00:02]}  Kh8 {[%clk 0:00:03]} 44. Bb7 {[%clk 0:00:01]}  b1=Q {[%clk 0:00:03]} 0-1


[Site "https://www.chess.com"]

[Event "Titled Tuesday Blitz April 11 Early 2023"]
[White "Makhmudov, Shukhrat"]
[Black "Mazarini41"]
[WhiteFideId "14200775"]
[WhiteElo "2135"]
[BlackElo "2421"]
[Result "1/2-1/2"]
[Round "07"]
[TimeControl "180+2"]
[Date "2023.04.11"]
[WhiteClock "0:00:24"]
[BlackClock "0:00:05"]

1. e4 {[%clk 0:03:00]}  e6 {[%clk 0:02:59]} 2. d4 {[%clk 0:02:59]}  d5 {[%clk 0:02:59]} 3. Nd2 {[%clk 0:02:57]}  c5 {[%clk 0:02:58]} 4. exd5 {[%clk 0:02:57]}  exd5 {[%clk 0:02:58]} 5. Bb5+ {[%clk 0:02:56]}  Nc6 {[%clk 0:02:57]} 6. Qe2+ {[%clk 0:02:57]}  Qe7 {[%clk 0:02:52]} 7. dxc5 {[%clk 0:02:56]}  Qxe2+ {[%clk 0:02:51]} 8. Nxe2 {[%clk 0:02:56]}  Bxc5 {[%clk 0:02:52]} 9. Nb3 {[%clk 0:02:56]}  Bb6 {[%clk 0:02:51]} 10. c3 {[%clk 0:02:53]}  Ne7 {[%clk 0:02:51]} 11. Bg5 {[%clk 0:02:53]}  f6 {[%clk 0:02:50]} 12. Bf4 {[%clk 0:02:53]}  Kf7 {[%clk 0:02:48]} 13. f3 {[%clk 0:02:38]}  a6 {[%clk 0:02:48]} 14. Bd3 {[%clk 0:02:37]}  Ne5 {[%clk 0:02:48]} 15. Bc2 {[%clk 0:02:35]}  Nc4 {[%clk 0:02:48]} 16. O-O-O {[%clk 0:02:34]}  g5 {[%clk 0:02:42]} 17. Bg3 {[%clk 0:02:24]}  Ne3 {[%clk 0:02:35]} 18. Bf2 {[%clk 0:02:23]}  Ba7 {[%clk 0:02:07]} 19. Bxe3 {[%clk 0:02:22]}  Bxe3+ {[%clk 0:02:07]} 20. Kb1 {[%clk 0:02:23]}  h5 {[%clk 0:01:55]} 21. Nbd4 {[%clk 0:02:23]}  h4 {[%clk 0:01:51]} 22. Bb3 {[%clk 0:02:22]}  h3 {[%clk 0:01:42]} 23. g3 {[%clk 0:02:22]}  Bd7 {[%clk 0:01:18]} 24. Rd3 {[%clk 0:02:21]}  Bxd4 {[%clk 0:01:15]} 25. Nxd4 {[%clk 0:02:12]}  Bc6 {[%clk 0:01:07]} 26. Re1 {[%clk 0:02:11]}  Rhe8 {[%clk 0:01:06]} 27. Rde3 {[%clk 0:02:11]}  Ng6 {[%clk 0:01:00]} 28. Nf5 {[%clk 0:02:10]}  Rxe3 {[%clk 0:00:55]} 29. Rxe3 {[%clk 0:02:10]}  Ne5 {[%clk 0:00:49]} 30. f4 {[%clk 0:01:51]}  Ng4 {[%clk 0:00:48]} 31. Re7+ {[%clk 0:01:47]}  Kf8 {[%clk 0:00:48]} 32. Rh7 {[%clk 0:01:41]}  Kg8 {[%clk 0:00:34]} 33. Rxh3 {[%clk 0:01:40]}  Re8 {[%clk 0:00:34]} 34. fxg5 {[%clk 0:01:35]}  fxg5 {[%clk 0:00:34]} 35. Rh5 {[%clk 0:01:34]}  Re1+ {[%clk 0:00:31]} 36. Kc2 {[%clk 0:01:34]}  Kf7 {[%clk 0:00:21]} 37. Rxg5 {[%clk 0:01:25]}  Nxh2 {[%clk 0:00:21]} 38. Nd4 {[%clk 0:01:21]}  Rg1 {[%clk 0:00:20]} 39. Bxd5+ {[%clk 0:01:14]}  Bxd5 {[%clk 0:00:17]} 40. Rxd5 {[%clk 0:01:14]}  Ke7 {[%clk 0:00:14]} 41. Rg5 {[%clk 0:01:12]}  Nf1 {[%clk 0:00:15]} 42. Re5+ {[%clk 0:01:06]}  Kd6 {[%clk 0:00:14]} 43. Re6+ {[%clk 0:01:06]}  Kd7 {[%clk 0:00:15]} 44. Rb6 {[%clk 0:00:56]}  Kc7 {[%clk 0:00:14]} 45. Rg6 {[%clk 0:00:54]}  Rxg3 {[%clk 0:00:14]} 46. Rxg3 {[%clk 0:00:52]}  Nxg3 {[%clk 0:00:14]} 47. Kd3 {[%clk 0:00:52]}  Nh5 {[%clk 0:00:14]} 48. Ke4 {[%clk 0:00:51]}  Nf6+ {[%clk 0:00:14]} 49. Kf5 {[%clk 0:00:51]}  Nd5 {[%clk 0:00:14]} 50. Ke4 {[%clk 0:00:50]}  Nf6+ {[%clk 0:00:15]} 51. Ke5 {[%clk 0:00:51]}  Ng4+ {[%clk 0:00:15]} 52. Kd5 {[%clk 0:00:50]}  Ne3+ {[%clk 0:00:15]} 53. Kc5 {[%clk 0:00:50]}  b6+ {[%clk 0:00:15]} 54. Kb4 {[%clk 0:00:49]}  Kd6 {[%clk 0:00:15]} 55. Kb3 {[%clk 0:00:47]}  Kc5 {[%clk 0:00:14]} 56. Nc2 {[%clk 0:00:47]}  Nd5 {[%clk 0:00:14]} 57. Nb4 {[%clk 0:00:46]}  Nc7 {[%clk 0:00:13]} 58. Nd3+ {[%clk 0:00:46]}  Kc6 {[%clk 0:00:14]} 59. Kc4 {[%clk 0:00:46]}  b5+ {[%clk 0:00:12]} 60. Kb4 {[%clk 0:00:45]}  Kb6 {[%clk 0:00:13]} 61. Nf4 {[%clk 0:00:44]}  a5+ {[%clk 0:00:13]} 62. Kb3 {[%clk 0:00:45]}  Kc5 {[%clk 0:00:12]} 63. a4 {[%clk 0:00:44]}  Ne8 {[%clk 0:00:04]} 64. Nd3+ {[%clk 0:00:40]}  Kb6 {[%clk 0:00:05]} 65. axb5 {[%clk 0:00:39]}  Kxb5 {[%clk 0:00:05]} 66. c4+ {[%clk 0:00:40]}  Kc6 {[%clk 0:00:06]} 67. Ka4 {[%clk 0:00:39]}  Nd6 {[%clk 0:00:05]} 68. b3 {[%clk 0:00:39]}  Nb7 {[%clk 0:00:05]} 69. Ne5+ {[%clk 0:00:38]}  Kb6 {[%clk 0:00:04]} 70. Nd7+ {[%clk 0:00:37]}  Kc6 {[%clk 0:00:04]} 71. Nb8+ {[%clk 0:00:32]}  Kb6 {[%clk 0:00:05]} 72. Nd7+ {[%clk 0:00:32]}  Kc6 {[%clk 0:00:04]} 73. Ne5+ {[%clk 0:00:32]}  Kb6 {[%clk 0:00:05]} 74. Nd3 {[%clk 0:00:31]}  Kc6 {[%clk 0:00:05]} 75. Nf4 {[%clk 0:00:28]}  Nc5+ {[%clk 0:00:03]} 76. Ka3 {[%clk 0:00:28]}  Ne4 {[%clk 0:00:02]} 77. Nd5 {[%clk 0:00:27]}  Nc5 {[%clk 0:00:03]} 78. Nc3 {[%clk 0:00:26]}  Nd3 {[%clk 0:00:01]} 79. Ne4 {[%clk 0:00:25]}  Kb6 {[%clk 0:00:01]} 80. Ka4 {[%clk 0:00:23]}  Nb2+ {[%clk 0:00:02]} 81. Ka3 {[%clk 0:00:24]}  Nd3 {[%clk 0:00:02]} 82. Ka2 {[%clk 0:00:24]}  Kc6 {[%clk 0:00:03]} 83. Kb1 {[%clk 0:00:23]}  Ne5 {[%clk 0:00:03]} 84. Kc2 {[%clk 0:00:24]}  Nd7 {[%clk 0:00:03]} 85. Kc3 {[%clk 0:00:24]}  Ne5 {[%clk 0:00:03]} 86. Kd4 {[%clk 0:00:24]}  Nf3+ {[%clk 0:00:04]} 87. Ke3 {[%clk 0:00:24]}  Ne5 {[%clk 0:00:04]} 88. Kd4 {[%clk 0:00:23]}  Nf3+ {[%clk 0:00:05]} 89. Kc3 {[%clk 0:00:23]}  Ne5 {[%clk 0:00:05]} 90. Nf2 {[%clk 0:00:24]}  Nd7 {[%clk 0:00:05]} 91. Nd3 {[%clk 0:00:24]}  Nf6 {[%clk 0:00:04]} 92. Kd4 {[%clk 0:00:24]}  Ng4 {[%clk 0:00:02]} 93. Ne5+ {[%clk 0:00:24]}  Nxe5 {[%clk 0:00:02]} 94. Kxe5 {[%clk 0:00:24]}  Kc5 {[%clk 0:00:03]} 95. Ke4 {[%clk 0:00:25]}  a4 {[%clk 0:00:03]} 96. bxa4 {[%clk 0:00:23]}  Kxc4 {[%clk 0:00:04]} 97. a5 {[%clk 0:00:24]}  Kb5 {[%clk 0:00:05]} 98. a6 {[%clk 0:00:24]}  Kxa6 {[%clk 0:00:05]} 1/2-1/2


[Site "https://www.chess.com"]

[Event "Titled Tuesday Blitz April 11 Early 2023"]
[White "Skaric, Djuro"]
[Black "Avazkhonov, Alikhon"]
[WhiteFideId "934569"]
[BlackFideId "14208504"]
[WhiteElo "2282"]
[BlackElo "1739"]
[Result "0-1"]
[Round "07"]
[TimeControl "180+2"]
[Date "2023.04.11"]
[WhiteClock "0:00:08"]
[BlackClock "0:00:04"]

1. g3 {[%clk 0:03:00]}  e5 {[%clk 0:02:12]} 2. Bg2 {[%clk 0:03:01]}  d5 {[%clk 0:02:11]} 3. d3 {[%clk 0:02:54]}  Nf6 {[%clk 0:02:11]} 4. Nf3 {[%clk 0:02:54]}  Bd6 {[%clk 0:02:11]} 5. O-O {[%clk 0:02:53]}  O-O {[%clk 0:02:11]} 6. h3 {[%clk 0:02:53]}  c6 {[%clk 0:02:11]} 7. Nc3 {[%clk 0:02:52]}  Bf5 {[%clk 0:02:12]} 8. Nd2 {[%clk 0:02:51]}  Nbd7 {[%clk 0:02:11]} 9. e4 {[%clk 0:02:51]}  Bg6 {[%clk 0:02:12]} 10. f4 {[%clk 0:02:49]}  exf4 {[%clk 0:02:05]} 11. gxf4 {[%clk 0:02:49]}  dxe4 {[%clk 0:02:05]} 12. dxe4 {[%clk 0:02:47]}  Bc5+ {[%clk 0:01:39]} 13. Kh1 {[%clk 0:02:47]}  Nh5 {[%clk 0:01:32]} 14. Qe1 {[%clk 0:02:46]}  f5 {[%clk 0:01:32]} 15. e5 {[%clk 0:02:44]}  Be7 {[%clk 0:01:15]} 16. Nb3 {[%clk 0:02:38]}  Bh4 {[%clk 0:01:15]} 17. Qe3 {[%clk 0:02:23]}  Ng3+ {[%clk 0:01:15]} 18. Kg1 {[%clk 0:02:23]}  Nxf1 {[%clk 0:01:16]} 19. Bxf1 {[%clk 0:02:22]}  Re8 {[%clk 0:01:13]} 20. Kg2 {[%clk 0:02:20]}  Nf8 {[%clk 0:01:10]} 21. Qf3 {[%clk 0:02:18]}  Ne6 {[%clk 0:01:10]} 22. Be3 {[%clk 0:02:16]}  Qe7 {[%clk 0:01:10]} 23. a4 {[%clk 0:02:13]}  Qf7 {[%clk 0:01:06]} 24. Bc4 {[%clk 0:02:12]}  Bh5 {[%clk 0:00:35]} 25. Qf1 {[%clk 0:02:11]}  Qg6+ {[%clk 0:00:34]} 26. Kh1 {[%clk 0:02:10]}  Qg3 {[%clk 0:00:35]} 27. Be2 {[%clk 0:01:17]}  Bxe2 {[%clk 0:00:26]} 28. Qxe2 {[%clk 0:01:17]}  Qxh3+ {[%clk 0:00:27]} 29. Kg1 {[%clk 0:01:17]}  Qg3+ {[%clk 0:00:27]} 30. Kh1 {[%clk 0:01:13]}  Nxf4 {[%clk 0:00:27]} 31. Qc4+ {[%clk 0:01:11]}  Kh8 {[%clk 0:00:22]} 32. Bxf4 {[%clk 0:01:07]}  Qf3+ {[%clk 0:00:13]} 33. Kg1 {[%clk 0:01:05]}  Bf2+ {[%clk 0:00:04]} 34. Kh2 {[%clk 0:01:06]}  Re6 {[%clk 0:00:04]} 35. Ne2 {[%clk 0:00:38]}  Rg6 {[%clk 0:00:03]} 36. Rg1 {[%clk 0:00:14]}  Bxg1+ {[%clk 0:00:03]} 37. Nxg1 {[%clk 0:00:08]}  Qg2# {[%clk 0:00:04]} 0-1


[Site "https://www.chess.com"]

[Event "Titled Tuesday Blitz April 11 Early 2023"]
[White "Reefat, Bin-Sattar"]
[Black "Barwinska, Ewa"]
[WhiteFideId "10200207"]
[BlackFideId "21833761"]
[WhiteElo "2462"]
[BlackElo "1908"]
[Result "1-0"]
[Round "07"]
[TimeControl "180+2"]
[Date "2023.04.11"]
[WhiteClock "0:00:34"]
[BlackClock "0:00:13"]

1. e4 {[%clk 0:02:54]}  c5 {[%clk 0:02:59]} 2. b3 {[%clk 0:02:54]}  Nc6 {[%clk 0:02:52]} 3. Bb2 {[%clk 0:02:54]}  e6 {[%clk 0:02:53]} 4. Nf3 {[%clk 0:02:54]}  d5 {[%clk 0:02:51]} 5. exd5 {[%clk 0:02:53]}  exd5 {[%clk 0:02:52]} 6. Bb5 {[%clk 0:02:54]}  Nf6 {[%clk 0:02:50]} 7. O-O {[%clk 0:02:52]}  Be7 {[%clk 0:02:49]} 8. Ne5 {[%clk 0:02:52]}  Bd7 {[%clk 0:02:44]} 9. Bxc6 {[%clk 0:02:52]}  Bxc6 {[%clk 0:02:42]} 10. f4 {[%clk 0:02:45]}  O-O {[%clk 0:02:36]} 11. Qe1 {[%clk 0:02:41]}  d4 {[%clk 0:02:33]} 12. Nxc6 {[%clk 0:02:41]}  bxc6 {[%clk 0:02:33]} 13. Na3 {[%clk 0:02:41]}  Re8 {[%clk 0:02:19]} 14. Nc4 {[%clk 0:02:40]}  Nd5 {[%clk 0:02:15]} 15. Qg3 {[%clk 0:02:36]}  Bf6 {[%clk 0:02:08]} 16. Qf3 {[%clk 0:02:32]}  Qc7 {[%clk 0:02:07]} 17. g3 {[%clk 0:02:30]}  Nb4 {[%clk 0:01:57]} 18. a3 {[%clk 0:02:22]}  Nd5 {[%clk 0:01:39]} 19. Rae1 {[%clk 0:02:21]}  a5 {[%clk 0:01:38]} 20. a4 {[%clk 0:01:42]}  Nb4 {[%clk 0:01:25]} 21. Rxe8+ {[%clk 0:01:30]}  Rxe8 {[%clk 0:01:26]} 22. Ba3 {[%clk 0:01:30]}  Nxc2 {[%clk 0:01:17]} 23. Bxc5 {[%clk 0:01:30]}  Ne1 {[%clk 0:00:51]} 24. Qg4 {[%clk 0:01:30]}  Nd3 {[%clk 0:00:45]} 25. Bd6 {[%clk 0:01:21]}  Qd8 {[%clk 0:00:38]} 26. Qf5 {[%clk 0:01:16]}  Nb4 {[%clk 0:00:38]} 27. Be5 {[%clk 0:01:06]}  Nd5 {[%clk 0:00:26]} 28. Bxf6 {[%clk 0:00:52]}  Nxf6 {[%clk 0:00:27]} 29. Qxa5 {[%clk 0:00:51]}  Qd7 {[%clk 0:00:10]} 30. f5 {[%clk 0:00:47]}  Nd5 {[%clk 0:00:09]} 31. Qc5 {[%clk 0:00:46]}  h6 {[%clk 0:00:09]} 32. Qxd4 {[%clk 0:00:45]}  Rb8 {[%clk 0:00:09]} 33. Rf3 {[%clk 0:00:41]}  Qc7 {[%clk 0:00:05]} 34. a5 {[%clk 0:00:40]}  Rd8 {[%clk 0:00:05]} 35. Qc5 {[%clk 0:00:39]}  Rb8 {[%clk 0:00:03]} 36. a6 {[%clk 0:00:39]}  Rb5 {[%clk 0:00:03]} 37. Qd4 {[%clk 0:00:36]}  Nb6 {[%clk 0:00:02]} 38. f6 {[%clk 0:00:33]}  Nxc4 {[%clk 0:00:02]} 39. bxc4 {[%clk 0:00:32]}  Qb6 {[%clk 0:00:01]} 40. Qxb6 {[%clk 0:00:29]}  Rxb6 {[%clk 0:00:02]} 41. Ra3 {[%clk 0:00:29]}  Rb8 {[%clk 0:00:02]} 42. fxg7 {[%clk 0:00:29]}  Kxg7 {[%clk 0:00:02]} 43. Kf2 {[%clk 0:00:30]}  Ra8 {[%clk 0:00:03]} 44. d4 {[%clk 0:00:31]}  Kf6 {[%clk 0:00:04]} 45. Ke3 {[%clk 0:00:31]}  Ke6 {[%clk 0:00:04]} 46. Ke4 {[%clk 0:00:31]}  Kd6 {[%clk 0:00:03]} 47. Kf5 {[%clk 0:00:31]}  c5 {[%clk 0:00:03]} 48. d5 {[%clk 0:00:31]}  Ra7 {[%clk 0:00:03]} 49. Kf6 {[%clk 0:00:31]}  Ra8 {[%clk 0:00:01]} 50. g4 {[%clk 0:00:31]}  Ra7 {[%clk 0:00:02]} 51. h4 {[%clk 0:00:31]}  Kc7 {[%clk 0:00:02]} 52. Kxf7 {[%clk 0:00:30]}  Kb6+ {[%clk 0:00:03]} 53. Kg6 {[%clk 0:00:30]}  Re7 {[%clk 0:00:03]} 54. a7 {[%clk 0:00:29]}  Rxa7 {[%clk 0:00:03]} 55. Rxa7 {[%clk 0:00:29]}  Kxa7 {[%clk 0:00:04]} 56. d6 {[%clk 0:00:29]}  Ka6 {[%clk 0:00:05]} 57. Kf6 {[%clk 0:00:29]}  Ka5 {[%clk 0:00:06]} 58. d7 {[%clk 0:00:30]}  Kb4 {[%clk 0:00:07]} 59. d8=Q {[%clk 0:00:30]}  Kxc4 {[%clk 0:00:08]} 60. Qh8 {[%clk 0:00:30]}  Kb3 {[%clk 0:00:09]} 61. Qxh6 {[%clk 0:00:30]}  c4 {[%clk 0:00:09]} 62. Qe3+ {[%clk 0:00:30]}  c3 {[%clk 0:00:10]} 63. h5 {[%clk 0:00:31]}  Kb2 {[%clk 0:00:11]} 64. Qd4 {[%clk 0:00:31]}  Kc2 {[%clk 0:00:11]} 65. h6 {[%clk 0:00:31]}  Kb1 {[%clk 0:00:11]} 66. Qxc3 {[%clk 0:00:31]}  Ka2 {[%clk 0:00:12]} 67. Qb4 {[%clk 0:00:32]}  Ka1 {[%clk 0:00:12]} 68. h7 {[%clk 0:00:32]}  Ka2 {[%clk 0:00:12]} 69. h8=Q {[%clk 0:00:33]}  Ka1 {[%clk 0:00:13]} 70. Qa8# {[%clk 0:00:34]} 1-0


[Site "https://www.chess.com"]

[Event "Titled Tuesday Blitz April 11 Early 2023"]
[White "Sohier, Julien"]
[Black "Tarasova, Viktoriya"]
[WhiteFideId "645346"]
[BlackFideId "4175840"]
[WhiteElo "2209"]
[BlackElo "2182"]
[Result "1/2-1/2"]
[Round "07"]
[TimeControl "180+2"]
[Date "2023.04.11"]
[WhiteClock "0:00:17"]
[BlackClock "0:00:06"]

1. e4 {[%clk 0:03:00]}  e5 {[%clk 0:02:58]} 2. Nf3 {[%clk 0:03:00]}  Nc6 {[%clk 0:02:58]} 3. Bb5 {[%clk 0:03:00]}  Nf6 {[%clk 0:02:51]} 4. d3 {[%clk 0:02:57]}  Bc5 {[%clk 0:02:50]} 5. O-O {[%clk 0:02:53]}  Nd4 {[%clk 0:02:49]} 6. Nxd4 {[%clk 0:02:52]}  Bxd4 {[%clk 0:02:50]} 7. c3 {[%clk 0:02:52]}  Bb6 {[%clk 0:02:50]} 8. Re1 {[%clk 0:02:53]}  c6 {[%clk 0:02:50]} 9. Ba4 {[%clk 0:02:53]}  h6 {[%clk 0:02:50]} 10. d4 {[%clk 0:02:52]}  d6 {[%clk 0:02:50]} 11. Na3 {[%clk 0:02:46]}  O-O {[%clk 0:02:50]} 12. Nc4 {[%clk 0:02:46]}  Bc7 {[%clk 0:02:51]} 13. Bc2 {[%clk 0:02:42]}  b5 {[%clk 0:02:50]} 14. Ne3 {[%clk 0:02:37]}  Re8 {[%clk 0:02:35]} 15. a4 {[%clk 0:02:36]}  Bd7 {[%clk 0:02:22]} 16. axb5 {[%clk 0:02:34]}  cxb5 {[%clk 0:02:23]} 17. Qf3 {[%clk 0:02:25]}  a5 {[%clk 0:02:11]} 18. Nf5 {[%clk 0:02:18]}  Bxf5 {[%clk 0:02:07]} 19. Qxf5 {[%clk 0:02:16]}  Nh7 {[%clk 0:02:05]} 20. Bd3 {[%clk 0:02:04]}  Rb8 {[%clk 0:02:03]} 21. b3 {[%clk 0:01:52]}  Qf6 {[%clk 0:01:56]} 22. Qxf6 {[%clk 0:01:51]}  Nxf6 {[%clk 0:01:55]} 23. f3 {[%clk 0:01:43]}  Bb6 {[%clk 0:01:43]} 24. Bxb5 {[%clk 0:01:34]}  Rec8 {[%clk 0:01:43]} 25. Bd2 {[%clk 0:01:26]}  exd4 {[%clk 0:01:42]} 26. c4 {[%clk 0:01:26]}  Ra8 {[%clk 0:01:29]} 27. Kf1 {[%clk 0:01:25]}  Kf8 {[%clk 0:01:29]} 28. Ke2 {[%clk 0:01:18]}  Ke7 {[%clk 0:01:30]} 29. Kd3 {[%clk 0:01:17]}  Nd7 {[%clk 0:01:30]} 30. Bxd7 {[%clk 0:01:15]}  Kxd7 {[%clk 0:01:29]} 31. Ra4 {[%clk 0:01:14]}  Rab8 {[%clk 0:01:03]} 32. Rb1 {[%clk 0:01:09]}  Rc5 {[%clk 0:00:45]} 33. Be1 {[%clk 0:00:40]}  Rg5 {[%clk 0:00:34]} 34. g4 {[%clk 0:00:39]}  h5 {[%clk 0:00:28]} 35. h4 {[%clk 0:00:37]}  Rc5 {[%clk 0:00:27]} 36. g5 {[%clk 0:00:37]}  f6 {[%clk 0:00:14]} 37. g6 {[%clk 0:00:33]}  f5 {[%clk 0:00:12]} 38. Bf2 {[%clk 0:00:27]}  fxe4+ {[%clk 0:00:12]} 39. fxe4 {[%clk 0:00:27]}  Re5 {[%clk 0:00:13]} 40. Bxd4 {[%clk 0:00:20]}  Bxd4 {[%clk 0:00:13]} 41. Kxd4 {[%clk 0:00:21]}  Re6 {[%clk 0:00:07]} 42. Rxa5 {[%clk 0:00:21]}  Rxg6 {[%clk 0:00:07]} 43. Rg5 {[%clk 0:00:21]}  Rxg5 {[%clk 0:00:05]} 44. hxg5 {[%clk 0:00:22]}  h4 {[%clk 0:00:06]} 45. Rh1 {[%clk 0:00:22]}  Rxb3 {[%clk 0:00:06]} 46. Rxh4 {[%clk 0:00:21]}  Rb1 {[%clk 0:00:03]} 47. Rh7 {[%clk 0:00:21]}  Rd1+ {[%clk 0:00:04]} 48. Kc3 {[%clk 0:00:21]}  Rc1+ {[%clk 0:00:04]} 49. Kd3 {[%clk 0:00:20]}  Rd1+ {[%clk 0:00:03]} 50. Kc2 {[%clk 0:00:20]}  Re1 {[%clk 0:00:03]} 51. Rxg7+ {[%clk 0:00:21]}  Ke6 {[%clk 0:00:04]} 52. Kd3 {[%clk 0:00:20]}  Rd1+ {[%clk 0:00:03]} 53. Ke3 {[%clk 0:00:21]}  Rc1 {[%clk 0:00:04]} 54. Rg6+ {[%clk 0:00:19]}  Kd7 {[%clk 0:00:03]} 55. Rf6 {[%clk 0:00:16]}  Rxc4 {[%clk 0:00:03]} 56. g6 {[%clk 0:00:17]}  Rc1 {[%clk 0:00:03]} 57. Kf4 {[%clk 0:00:13]}  Rg1 {[%clk 0:00:03]} 58. Kf5 {[%clk 0:00:12]}  Ke7 {[%clk 0:00:03]} 59. Rf7+ {[%clk 0:00:13]}  Ke8 {[%clk 0:00:04]} 60. Ke6 {[%clk 0:00:13]}  Rxg6+ {[%clk 0:00:02]} 61. Rf6 {[%clk 0:00:13]}  Rxf6+ {[%clk 0:00:03]} 62. Kxf6 {[%clk 0:00:14]}  Kd7 {[%clk 0:00:03]} 63. Kf7 {[%clk 0:00:14]}  Kd8 {[%clk 0:00:03]} 64. Ke6 {[%clk 0:00:15]}  Kc7 {[%clk 0:00:04]} 65. Ke7 {[%clk 0:00:15]}  Kc6 {[%clk 0:00:04]} 66. Ke6 {[%clk 0:00:15]}  Kc7 {[%clk 0:00:05]} 67. Kd5 {[%clk 0:00:15]}  Kd7 {[%clk 0:00:05]} 68. e5 {[%clk 0:00:16]}  dxe5 {[%clk 0:00:06]} 69. Kxe5 {[%clk 0:00:17]} 1/2-1/2


[Site "https://www.chess.com"]